bitfinex-derivatives/quotes_ETHF0:USTF0_20241023
["timestamp","ask_amount","ask_price","bid_price","bid_amount"]
[1729674592881,0.38893,2572.6,2572.2,0.38898]
[1729674593179,4.71223,2572.8,2571.9,41.18901]
[1729674593384,4.71223,2572.8,2571.9,40.8]
[1729674593574,0.38897,2572.3,2571.9,41.18902]
[1729674593774,0.38895,2572.5,2572.1,0.389]
[1729674593970,0.38895,2572.5,2571.9,44.0078]
[1729674593971,0.38897,2572.3,2571.9,44.39682]
[1729674594177,0.38895,2572.5,2572.0,0.389]
[1729674594383,0.38896,2572.4,2572.0,0.389]
[1729674594983,6.9478,2572.6,2571.9,40.8]
[1729674595281,0.38901,2572.0,2571.9,40.8]
[1729674595778,7.92014,2572.6,2572.0,0.38901]
[1729674595779,0.38897,2572.3,2572.0,0.38901]
[1729674595979,0.38897,2572.3,2571.9,41.18902]
[1729674596175,0.389,2572.1,2571.9,40.8]
[1729674596379,3.2078,2572.6,2572.3,0.38896]
[1729674596574,3.59673,2572.6,2572.2,0.38897]
[1729674596881,1.9464,2573.0,2572.0,5.1261]
[1729674596882,1.9464,2573.0,2572.1,3.2078]
[1729674597180,1.9464,2573.0,2572.0,1.9183]
[1729674597181,0.38891,2572.7,2572.0,1.9183]
[1729674597373,6.9478,2572.8,2572.0,5.1261]
[1729674597685,4.81383346,2572.6,2572.2,0.38897]
[1729674597889,0.38894,2572.5,2572.0,1.9183]
[1729674598182,0.38893,2572.6,2572.0,1.9183]
[1729674598485,0.38893,2572.6,2572.2,0.38897]
[1729674598782,3.2078,2572.8,2572.3,3.2078]
[1729674598984,1.9842,2573.1,2572.9,0.38887]
[1729674599173,3.2078,2573.2,2572.7,0.38891]
[1729674599375,0.38885,2573.1,2572.8,0.38888]
[1729674599575,3.2078,2573.2,2572.8,0.38888]
[1729674599783,3.59664,2573.2,2572.9,40.8]
[1729674599976,0.38886,2573.0,2572.9,40.8]
[1729674600180,6.9478,2573.2,2572.3,1.9742]
[1729674600376,0.38895,2572.4,2571.8,6.9478]
[1729674600581,0.38897,2572.4,2572.0,0.389]
[1729674600775,4.0726,2572.8,2572.0,0.389]
[1729674600987,0.38894,2572.5,2572.2,0.38897]
[1729674601281,0.38897,2572.3,2572.0,0.389]
[1729674601584,0.38896,2572.4,2572.1,0.38899]
[1729674601776,0.38891,2572.7,2572.3,0.38897]
[1729674602085,0.38892,2572.7,2572.3,0.38895]
[1729674602285,1.9889,2572.8,2572.6,0.38891]
[1729674602586,0.38888,2572.9,2572.6,0.38891]
[1729674603085,0.38887,2573.0,2572.7,0.38889]
[1729674603286,0.38887,2573.0,2572.7,0.3889]
[1729674603486,0.38885,2573.1,2572.8,0.38888]
[1729674603683,0.38885,2573.1,2572.5,3.2078]
[1729674604190,0.38885,2573.1,2572.8,0.38888]
[1729674604697,0.38885,2573.1,2572.5,3.2078]
[1729674604698,3.2078,2573.3,2572.5,3.2078]
[1729674604885,0.38889,2572.9,2572.6,0.38891]
[1729674605286,0.38886,2573.0,2572.7,0.3889]
[1729674605891,0.38886,2573.1,2572.8,0.38889]
[1729674606193,0.38886,2573.0,2572.8,0.38888]
[1729674606395,3.2078,2573.3,2572.6,3.2078]
[1729674606590,3.2078,2573.3,2572.9,0.38887]
[1729674606591,0.38884,2573.2,2572.9,0.38887]
[1729674606789,3.2078,2573.3,2572.6,3.2078]
[1729674606997,0.38883,2573.2,2572.6,6.9478]
[1729674607186,0.38886,2573.0,2572.7,0.38889]
[1729674607392,3.2078,2573.3,2572.8,0.38889]
[1729674607592,0.38885,2573.1,2572.8,0.38888]
[1729674608089,0.38884,2573.2,2572.9,0.38887]
[1729674608300,0.38891,2572.7,2572.6,3.2078]
[1729674608485,4.7122,2572.9,2572.1,0.38899]
[1729674608688,0.38897,2572.3,2572.1,0.38899]
[1729674608890,0.38897,2572.3,2572.0,0.389]
[1729674609093,0.389,2572.1,2571.9,44.39682]
[1729674609294,6.9478,2572.4,2571.8,3.8549]
[1729674609493,6.9478,2572.4,2571.5,0.38908]
[1729674609494,0.38905,2571.8,2571.5,0.38908]
[1729674609702,0.38906,2571.7,2571.5,40.8]
[1729674610000,3.2078,2571.8,2571.4,3.2078]
[1729674610386,0.38898,2572.3,2571.9,0.38901]
[1729674610591,0.38898,2572.3,2571.9,0.38902]
[1729674610787,0.38895,2572.4,2571.8,3.2078]
[1729674610992,0.38895,2572.4,2572.1,0.38899]
[1729674611195,2.32785,2572.5,2572.2,0.38898]
[1729674611506,1.9389,2572.5,2571.9,2.0133]
[1729674611796,0.38894,2572.5,2572.2,0.38898]
[1729674612094,5.1715,2572.6,2571.9,5.2211]
[1729674612300,0.38894,2572.5,2572.2,0.38898]
[1729674612595,0.38894,2572.5,2572.2,0.38897]
[1729674612794,5.1715,2572.6,2571.9,8.9611]
[1729674612989,3.74,2572.4,2571.9,3.2078]
[1729674613201,3.74,2572.1,2571.4,40.8]
[1729674613400,0.38908,2571.6,2571.4,40.8]
[1729674613995,5.1343,2571.9,2571.4,40.8]
[1729674614296,0.38908,2571.6,2571.4,40.8]
[1729674614605,0.38906,2571.7,2571.4,41.1891]
[1729674614795,0.38908,2571.6,2571.4,40.8]
[1729674614990,1.9265,2571.9,2571.4,40.8]
[1729674615193,0.38908,2571.6,2571.4,40.8]
[1729674615489,1.9265,2571.9,2571.4,44.0078]
[1729674615695,0.38905,2571.8,2571.5,0.38909]
[1729674616098,2.31554,2571.9,2571.2,3.2078]
[1729674616298,0.38904,2571.9,2571.5,3.2078]
[1729674616501,3.2078,2572.2,2571.6,3.9954]
[1729674617600,3.2078,2572.2,2571.9,0.38902]
[1729674617790,0.389,2572.1,2571.8,0.38903]
[1729674618203,3.2078,2572.2,2571.5,6.9478]
[1729674618398,3.2078,2572.2,2571.7,0.38905]
[1729674618600,0.38903,2571.9,2571.7,0.38905]
[1729674618899,3.2078,2572.2,2571.5,6.9478]
[1729674618900,3.2078,2572.2,2571.5,3.74]
[1729674619198,2.0234,2572.3,2571.5,3.2078]
[1729674619399,5.19237064,2572.1,2571.3,2.065]
[1729674619595,0.3891,2571.5,2571.3,2.065]
[1729674619904,3.2078,2571.9,2571.3,2.065]
[1729674620400,0.3891,2571.5,2571.3,2.065]
[1729674621307,0.38912,2571.3,2571.2,40.8]
[1729674621600,0.3892,2570.8,2570.5,2.31563]
[1729674621791,7.31493045,2571.3,2570.5,2.31563]
[1729674621792,0.38919,2570.9,2570.5,1.9264]
[1729674621992,5.2901,2571.3,2570.6,40.8]
[1729674622396,9.64926515,2571.3,2570.6,40.8]
[1729674622593,0.3892,2570.8,2570.6,40.8]
[1729674622800,0.38918,2570.9,2570.6,41.18922]
[1729674623104,0.38918,2570.9,2570.7,0.38921]
[1729674623397,0.38918,2570.9,2570.3,0.37519054]
[1729674623398,4.37611664,2570.8,2569.9,3.2078]
[1729674623596,0.38919,2570.9,2570.6,0.38922]
[1729674623798,7.58391664,2571.2,2570.6,0.38922]
[1729674623992,3.2078,2571.2,2570.3,3.74]
[1729674624194,0.3892,2570.8,2570.5,0.38924]
[1729674624393,0.38918,2570.9,2570.6,0.38922]
[1729674624595,3.2078,2571.6,2570.8,3.2078]
[1729674624902,4.18051,2571.6,2570.6,1.9459]
[1729674625199,0.3892,2570.8,2570.6,1.9459]
[1729674625401,0.38921,2570.7,2570.4,0.38925]
[1729674625595,7.39768053,2570.7,2570.2,40.8]
[1729674625797,7.39768053,2570.7,2570.3,0.38926]
[1729674625798,0.38923,2570.6,2570.3,0.38926]
[1729674626306,3.2078,2570.7,2570.3,0.38927]
[1729674626607,5.1528,2571.1,2570.3,3.74]
[1729674626807,3.2078,2571.1,2570.4,3.2078]
[1729674627098,0.3892,2570.8,2570.5,0.38924]
[1729674627304,0.38921,2570.8,2570.4,0.38924]
[1729674627506,0.38922,2570.7,2570.4,0.38925]
[1729674627692,0.3892,2570.8,2570.5,0.38924]
[1729674627895,0.38918,2570.9,2570.6,0.38921]
[1729674628093,3.2078,2571.1,2570.5,3.2078]
[1729674628298,3.2078,2571.1,2570.5,0.38923]
[1729674628299,0.3892,2570.8,2570.5,0.38923]
[1729674628493,0.38921,2570.7,2570.4,4.12924]
[1729674628798,3.2078,2571.1,2570.5,3.2078]
[1729674628998,0.38919,2570.9,2570.6,0.38922]
[1729674629202,0.38917,2571.0,2570.6,0.38922]
[1729674629508,2.40092,2571.3,2571.0,0.38916]
[1729674629703,0.38914,2571.2,2570.9,0.38917]
[1729674630010,0.38918,2570.9,2570.7,2.0229]
[1729674630409,5.2196,2571.3,2570.7,2.0229]
[1729674630607,0.38916,2571.1,2570.8,0.38919]
[1729674631503,5.2196,2571.3,2570.7,5.2307]
[1729674631708,0.38916,2571.1,2570.8,0.38919]
[1729674631907,2.0118,2571.3,2570.7,5.2307]
[1729674632109,2.40092,2571.3,2571.0,0.38916]
[1729674632304,2.0118,2571.3,2571.0,0.38916]
[1729674632501,2.0118,2571.3,2570.8,0.38918]
[1729674632704,2.0118,2571.3,2570.7,2.0229]
[1729674632900,5.2196,2571.3,2570.5,1.9632]
[1729674633104,5.2196,2571.3,2570.6,0.38922]
[1729674633105,0.38918,2571.0,2570.6,0.38922]
[1729674633315,5.2196,2571.3,2570.7,0.3892]
[1729674633617,0.38916,2571.1,2570.5,4.1094]
[1729674633807,0.38916,2571.1,2570.8,0.38918]
[1729674634113,2.40093,2571.3,2571.0,0.38916]
[1729674634313,0.38913,2571.3,2571.0,0.38916]
[1729674635009,2.35311,2571.4,2571.1,0.38914]
[1729674635806,3.2078,2571.6,2570.8,3.2078]
[1729674636007,3.2078,2572.0,2571.2,3.74]
[1729674636206,2.0642,2572.2,2571.3,4.32396339]
[1729674636415,2.0642,2572.2,2571.7,0.38905]
[1729674636615,2.45319,2572.2,2572.0,0.38901]
[1729674637016,2.0642,2572.2,2572.0,0.389]
[1729674637209,0.38903,2571.9,2571.7,0.38905]
[1729674637408,6.9478,2571.8,2570.7,1.01763119]
[1729674637609,7.88088916,2571.8,2571.3,0.38911]
[1729674637919,0.38907,2571.6,2571.4,0.3891]
[1729674638213,7.98253613,2572.0,2571.3,3.2078]
[1729674638412,0.38909,2571.5,2571.4,40.8]
[1729674638715,4.18032,2572.1,2571.4,40.8]
[1729674638916,4.18032,2572.1,2571.4,41.18909]
[1729674639117,0.38908,2571.6,2571.4,41.18909]
[1729674639320,0.38906,2571.7,2571.5,0.38908]
[1729674639505,0.38907,2571.7,2571.4,41.18909]
[1729674639710,4.18032,2572.1,2571.4,40.8]
[1729674639912,0.38906,2571.7,2571.5,0.38908]
[1729674640215,0.38908,2571.6,2571.4,41.18909]
[1729674640519,0.38909,2571.5,2571.4,40.8]
[1729674640721,0.38908,2571.6,2571.4,0.38909]
[1729674640925,8.09498297,2572.0,2571.0,3.40369174]
[1729674641123,3.2078,2571.8,2571.2,0.38912]
[1729674641419,0.38909,2571.5,2571.3,0.38911]
[1729674641616,3.2078,2571.8,2571.1,0.19135514]
[1729674641817,3.2078,2571.8,2571.2,3.74]
[1729674642124,3.2078,2571.8,2571.3,40.8]
[1729674642315,3.2078,2571.8,2571.6,0.38907]
[1729674642515,3.2078,2571.8,2571.3,40.8]
[1729674642714,3.2078,2571.8,2571.7,0.38906]
[1729674643320,3.2078,2571.8,2571.6,0.38906]
[1729674643521,3.2078,2571.8,2571.3,40.8]
[1729674643716,3.2078,2571.8,2571.7,0.38906]
[1729674644023,2.0624,2572.3,2571.5,3.2078]
[1729674644318,7.7153,2572.8,2571.7,7.92045]
[1729674644620,0.38892,2572.6,2572.3,0.38895]
[1729674644816,3.9753,2572.8,2572.2,3.2078]
[1729674645016,3.9753,2572.8,2572.1,0.38898]
[1729674645223,0.38897,2572.3,2572.0,0.389]
[1729674645411,3.74,2572.6,2571.9,3.2078]
[1729674645617,0.38902,2572.0,2571.7,0.38905]
[1729674645918,0.38899,2572.2,2571.9,0.38902]
[1729674646124,3.2078,2572.3,2571.4,3.06154]
[1729674646331,2.1223,2572.2,2571.4,2.0888]
[1729674646520,0.38904,2571.8,2571.6,2.42897]
[1729674646817,4.1418,2572.2,2571.6,2.0399]
[1729674647024,0.38904,2571.9,2571.6,2.42897]
[1729674647213,0.38905,2571.8,2571.6,2.0399]
[1729674647420,0.38905,2571.8,2571.6,2.42897]
[1729674647616,0.38903,2571.9,2571.6,2.42897]
[1729674647818,4.1418,2572.2,2571.6,2.0399]
[1729674648224,0.38903,2571.9,2571.6,2.42896]
[1729674649015,4.1418,2572.2,2571.7,3.2078]
[1729674649323,0.389,2572.1,2571.8,0.38904]
[1729674649821,3.2078,2572.3,2571.8,3.2078]
[1729674650024,3.2078,2572.3,2571.6,2.0399]
[1729674650218,3.2078,2572.3,2571.9,0.38902]
[1729674650219,0.38899,2572.2,2571.9,0.38902]
[1729674650426,3.59677,2572.3,2572.0,0.389]
[1729674650722,0.389,2572.1,2571.8,3.59683]
[1729674650932,0.38901,2572.1,2571.8,0.38903]
[1729674651123,4.1838,2572.8,2572.0,3.2078]
[1729674651722,5.15606,2572.8,2571.8,3.74]
[1729674651926,0.38895,2572.5,2572.1,3.2078]
[1729674652124,0.38895,2572.4,2572.1,0.38899]
[1729674652317,0.38894,2572.5,2572.2,0.38898]
[1729674652516,0.38896,2572.4,2571.8,3.74]
[1729674652713,0.38895,2572.5,2572.1,3.2078]
[1729674653024,4.1838,2572.8,2572.2,0.38897]
[1729674653220,4.1838,2572.8,2572.0,3.2078]
[1729674653534,4.1838,2572.8,2572.3,0.38896]
[1729674653535,0.38894,2572.5,2572.3,0.38896]
[1729674653733,4.1838,2572.8,2572.1,3.2078]
[1729674653734,0.38895,2572.4,2572.1,0.38899]
[1729674654027,0.38894,2572.5,2572.2,0.38897]
[1729674654216,0.38896,2572.4,2572.1,0.38899]
[1729674654415,0.38896,2572.4,2572.0,3.2078]
[1729674654416,0.38894,2572.5,2572.0,3.2078]
[1729674654621,0.38894,2572.5,2572.2,0.38897]
[1729674655015,1.36118,2572.7,2572.1,2.0833]
[1729674655221,0.97235,2572.5,2571.8,0.38904]
[1729674655422,0.97235,2572.5,2571.6,4.1232]
[1729674655423,0.389,2572.1,2571.6,4.1232]
[1729674655628,0.389,2572.1,2571.8,0.38903]
[1729674656020,3.59678,2572.3,2572.0,0.389]
[1729674656519,4.0213,2572.8,2571.8,6.9478]
[1729674656928,4.0213,2572.8,2571.8,3.74]
[1729674657129,4.0213,2572.8,2572.0,0.389]
[1729674657130,0.38897,2572.3,2572.0,0.389]
[1729674657625,0.97227,2572.7,2572.0,0.389]
[1729674657834,0.97227,2572.7,2571.9,3.2078]
[1729674658025,0.38897,2572.3,2572.0,0.389]
[1729674658625,0.38896,2572.4,2572.1,0.38899]
[1729674658923,0.38897,2572.3,2572.1,0.38899]
[1729674659123,0.38895,2572.5,2572.2,0.38898]
[1729674659323,3.2078,2572.6,2572.0,3.2078]
[1729674659526,3.2078,2572.6,2572.2,0.38897]
[1729674659724,3.2078,2572.6,2572.0,3.2078]
[1729674659725,3.59673,2572.6,2572.4,0.38895]
[1729674659924,2.0496,2572.8,2572.2,3.2078]
[1729674660130,2.43849,2572.8,2572.2,7.3607]
[1729674660320,2.0496,2572.8,2572.6,0.38891]
[1729674660520,3.2078,2572.9,2572.2,7.3607]
[1729674660723,0.60666381,3789.0,2573.0,0.38885]
[1729674660724,3.59662,2573.3,2573.0,0.38885]
[1729674661019,3.2078,2573.3,2573.0,0.38885]
[1729674661222,0.38884,2573.2,2572.9,0.38887]
[1729674662032,0.38886,2573.1,2572.8,4.54178]
[1729674662229,6.9478,2573.3,2572.4,3.2078]
[1729674662429,0.38894,2572.5,2572.4,3.2078]
[1729674662631,0.38894,2572.5,2572.2,0.38897]
[1729674662832,8.28108,2573.0,2572.2,40.8]
[1729674663032,8.28108,2573.0,2572.4,0.38895]
[1729674663233,0.38892,2572.6,2572.4,0.38895]
[1729674663533,0.38891,2572.7,2572.4,0.38895]
[1729674663729,8.28108,2573.0,2572.2,40.8]
[1729674663929,0.38894,2572.5,2572.3,0.38896]
[1729674664235,8.28108,2573.0,2572.2,40.8]
[1729674664427,3.2078,2573.0,2572.3,3.74]
[1729674664627,3.59662,2573.3,2573.0,0.38885]
[1729674664937,3.2078,2573.3,2572.9,4.0539]
[1729674665124,0.38883,2573.2,2572.9,4.44276]
[1729674665328,3.2078,2573.3,2573.0,0.38886]
[1729674665530,3.59662,2573.3,2573.0,0.38886]
[1729674665733,3.59662,2573.3,2572.9,4.44276]
[1729674665734,0.38884,2573.2,2572.9,4.44276]
[1729674665935,3.59663,2573.3,2572.9,4.0539]
[1729674666123,0.38884,2573.2,2572.9,4.0539]
[1729674666324,0.38884,2573.2,2573.0,0.38886]
[1729674666634,3.2078,2573.3,2572.9,7.9403]
[1729674666841,0.38884,2573.2,2573.0,0.38885]
[1729674667134,3.2078,2573.3,2573.1,0.38884]
[1729674667332,3.2078,2573.3,2573.1,3.74]
[1729674667537,3.2078,2573.3,2573.1,7.6264]
[1729674668232,3.2078,2573.3,2573.1,4.27524]
[1729674668624,3.2078,2573.3,2572.9,4.0539]
[1729674668625,3.59663,2573.3,2573.0,0.38885]
[1729674669033,0.38885,2573.1,2572.9,4.0539]
[1729674669235,0.38885,2573.1,2572.9,4.44277]
[1729674669434,3.2078,2573.3,2572.8,3.2078]
[1729674669634,0.3889,2572.8,2572.5,4.12892]
[1729674669932,0.38892,2572.6,2572.5,3.74]
[1729674670135,0.38892,2572.6,2572.4,4.47705]
[1729674670336,0.38892,2572.6,2572.4,8.36425]
[1729674670537,5.14728,2573.2,2572.5,0.38893]
[1729674670935,0.38891,2572.7,2572.5,0.38893]
[1729674671331,4.1752,2573.2,2572.6,3.8872]
[1729674671633,0.38887,2573.0,2572.8,4.12889]
[1729674671830,2.1325,2573.2,2572.8,4.12889]
[1729674672035,0.38886,2573.1,2572.8,4.12889]
[1729674672237,3.2078,2573.3,2572.9,0.38887]
[1729674672533,0.38885,2573.1,2572.8,6.9478]
[1729674672944,0.38885,2573.1,2572.9,0.38887]
[1729674673141,3.2078,2573.3,2572.8,6.9478]
[1729674673436,3.2078,2573.3,2572.7,3.2078]
[1729674673630,0.38891,2572.7,2572.5,3.74]
[1729674674139,1.9745,2573.2,2572.1,3.2078]
[1729674674140,7.3719,2573.0,2572.1,3.2078]
[1729674674345,6.9478,2572.7,2571.7,3.74]
[1729674674542,0.38904,2571.8,2571.6,3.2078]
[1729674674842,0.97243,2572.3,2571.6,3.59686]
[1729674674843,0.38903,2571.9,2571.6,3.59686]
[1729674675051,0.38903,2571.9,2571.7,0.38905]
[1729674675243,2.52739,2572.2,2571.9,0.38902]
[1729674675445,2.1384,2572.2,2572.0,3.74]
[1729674675636,2.52739,2572.2,2572.0,3.74]
[1729674675837,2.52739,2572.2,2572.0,0.38901]
[1729674676143,0.38901,2572.0,2571.7,4.12905]
[1729674676341,0.38901,2572.0,2571.8,0.38904]
[1729674676644,2.52739,2572.2,2571.9,0.38902]
[1729674677143,0.38899,2572.2,2571.9,0.38902]
[1729674677340,0.97231,2572.6,2571.7,6.9478]
[1729674677341,0.38898,2572.3,2572.0,0.38901]
[1729674677532,4.1999,2572.5,2571.7,3.2078]
[1729674677734,0.389,2572.1,2571.9,0.38903]
[1729674678453,0.38899,2572.2,2572.0,0.38901]
[1729674678944,0.38902,2572.0,2571.7,6.9478]
[1729674679141,0.38902,2572.0,2571.7,7.33685]
[1729674679346,0.38902,2572.0,2571.7,11.22485]
[1729674679844,3.2078,2572.4,2571.7,11.22485]
[1729674680032,0.38903,2571.9,2571.7,7.33685]
[1729674680238,0.38902,2572.0,2571.8,0.38904]
[1729674680640,0.38902,2572.0,2571.9,3.888]
[1729674680843,3.2078,2572.4,2571.9,3.888]
[1729674681147,0.38899,2572.2,2571.9,0.38902]
[1729674681444,0.38901,2572.1,2571.7,3.74]
[1729674681646,0.38901,2572.1,2571.8,0.38903]
[1729674681842,0.38901,2572.1,2571.7,3.74]
[1729674682140,0.38901,2572.1,2571.8,3.2078]
[1729674682346,5.17226,2572.5,2571.8,3.2078]
[1729674682548,0.38899,2572.2,2572.0,0.38901]
[1729674683042,5.17226,2572.5,2571.9,0.38902]
[1729674683043,0.38901,2572.1,2571.9,0.38902]
[1729674683246,0.38901,2572.1,2571.8,0.38903]
[1729674683733,5.17226,2572.5,2571.7,6.9478]
[1729674683934,0.38901,2572.1,2571.8,0.38903]
[1729674684134,0.38902,2572.0,2571.8,0.38903]
[1729674684539,0.38902,2572.0,2571.8,4.27703]
[1729674684940,0.38901,2572.0,2571.8,0.38903]
[1729674685242,0.38901,2572.0,2571.8,4.27703]
[1729674685448,0.389,2572.1,2571.9,0.38903]
[1729674685843,0.389,2572.1,2571.7,6.9478]
[1729674685844,1.36139,2572.3,2571.5,44.9021]
[1729674686043,0.38907,2571.7,2571.5,44.9021]
[1729674686348,0.38907,2571.6,2571.5,44.9021]
[1729674686540,2.0564,2571.9,2571.5,44.9021]
[1729674686749,0.38906,2571.7,2571.5,44.9021]
[1729674686946,0.38907,2571.6,2571.5,40.8]
[1729674689343,3.8888,2571.6,2571.1,3.2078]
[1729674689549,3.07363,2571.5,2570.8,0.38919]
[1729674689745,0.38916,2571.0,2570.9,40.8]
[1729674689945,3.2078,2571.2,2570.9,40.8]
[1729674690249,3.2078,2571.2,2570.1,2.50832543]
[1729674690250,1.36218,2570.8,2570.0,0.38931]
[1729674690448,3.2078,2570.9,2570.1,3.74]
[1729674690646,0.38921,2570.8,2570.4,0.38925]
[1729674690846,0.3892,2570.8,2570.4,0.38925]
[1729674691053,2.45118,2570.9,2570.6,0.38922]
[1729674691243,0.3892,2570.8,2570.5,0.38922]
[1729674691444,0.3892,2570.8,2570.4,2.0297]
[1729674691445,2.062,2570.9,2570.4,2.0297]
[1729674691845,0.38924,2570.6,2570.4,2.0297]
[1729674692841,0.38924,2570.5,2570.4,2.0297]
[1729674693158,4.20402366,2570.8,2570.2,40.8]
[1729674693350,0.38927,2570.3,2570.2,40.8]
[1729674694251,2.0587,2570.6,2569.8,2.5019]
[1729674694554,6.23959,2570.6,2569.8,6.09904]
[1729674694750,0.3893,2570.1,2569.9,40.8]
[1729674694952,0.38929,2570.2,2569.9,41.18933]
[1729674695148,0.38929,2570.2,2569.9,41.18932]
[1729674696055,0.3893,2570.1,2569.9,40.8]
[1729674696258,0.38927,2570.3,2570.0,4.1293]
[1729674696856,0.38927,2570.4,2570.1,3.59709]
[1729674697246,2.0587,2570.6,2570.1,3.2078]
[1729674697453,0.38927,2570.4,2570.1,3.2078]
[1729674697655,0.38927,2570.4,2570.1,3.59709]
[1729674697856,2.0587,2570.6,2570.1,3.2078]
[1729674698457,0.38926,2570.4,2570.1,3.5971]
[1729674698660,0.38926,2570.4,2570.1,3.59709]
[1729674698850,2.0587,2570.6,2570.1,3.2078]
[1729674699250,0.38928,2570.3,2570.1,3.2078]
[1729674699460,0.38928,2570.2,2570.1,3.2078]
[1729674700056,0.38928,2570.2,2569.9,41.18932]
[1729674700356,5.2665,2570.6,2569.9,40.8]
[1729674700557,0.38927,2570.3,2570.0,0.3893]
[1729674700964,0.3893,2570.1,2569.9,40.8]
[1729674701255,6.9478,2570.1,2569.8,0.4]
[1729674701452,8.69068304,2570.0,2569.8,0.4]
[1729674701658,4.59482,2570.0,2569.8,0.4]
[1729674701852,6.7718,2570.6,2569.8,41.2]
[1729674701853,2.0587,2570.6,2569.8,41.2]
[1729674702055,2.0587,2570.6,2569.9,2.49812]
[1729674702056,0.38929,2570.2,2569.9,2.49812]
[1729674702259,0.38929,2570.2,2570.0,3.2078]
[1729674702459,2.0803,2570.5,2570.0,3.2078]
[1729674702460,0.3893,2570.1,2570.0,3.2078]
[1729674703858,2.0803,2570.5,2570.0,3.2078]
[1729674704060,0.38929,2570.2,2570.0,3.59711]
[1729674704356,2.0803,2570.5,2570.0,3.2078]
[1729674704555,2.46955,2570.5,2570.2,0.38928]
[1729674704761,0.38923,2570.6,2570.3,3.59706]
[1729674704956,3.2078,2570.7,2570.3,3.2078]
[1729674705158,0.38925,2570.4,2570.3,3.2078]
[1729674705458,0.38922,2570.6,2570.3,3.59706]
[1729674705660,0.38925,2570.5,2570.3,3.2078]
[1729674706456,0.38925,2570.4,2570.3,3.2078]
[1729674707664,0.38924,2570.5,2570.3,3.2078]
[1729674708256,0.38925,2570.4,2570.3,3.2078]
[1729674708754,3.2078,2570.7,2570.3,3.2078]
[1729674708955,2.1141,2570.9,2570.4,1.9792]
[1729674709160,2.1141,2570.9,2570.5,1.9737]
[1729674709359,0.38925,2570.5,2570.3,3.2078]
[1729674709566,2.1141,2570.9,2570.3,3.2078]
[1729674709866,7.11310685,2570.8,2570.2,1.9737]
[1729674710061,0.38926,2570.4,2570.2,1.9737]
[1729674711058,0.38924,2570.5,2570.2,2.36297]
[1729674711266,0.38925,2570.4,2570.2,1.9737]
[1729674711467,4.9946,2570.8,2570.2,1.9737]
[1729674711766,4.9946,2570.8,2570.1,1.9792]
[1729674711970,0.38926,2570.4,2570.1,2.36849]
[1729674712259,5.96761,2570.8,2570.1,5.57629]
[1729674712456,0.38926,2570.4,2570.1,5.57629]
[1729674713361,0.38924,2570.5,2570.2,0.38927]
[1729674713768,1.9546,2570.8,2570.2,0.38927]
[1729674714062,0.38925,2570.4,2570.1,5.187]
[1729674714263,2.92761,2570.8,2570.1,3.2078]
[1729674714463,0.38927,2570.3,2570.1,3.5971]
[1729674714763,2.92761,2570.8,2570.1,3.2078]
[1729674714964,0.38921,2570.7,2570.2,0.38928]
[1729674715165,0.38926,2570.4,2570.2,0.38928]
[1729674715358,0.38926,2570.4,2570.1,3.2078]
[1729674715359,0.38927,2570.3,2570.1,3.59709]
[1729674715967,2.92761,2570.8,2570.1,3.2078]
[1729674716164,0.38926,2570.4,2570.1,3.59709]
[1729674716664,1.9546,2570.8,2570.1,6.2478]
[1729674716860,2.1141,2570.9,2570.4,3.2078]
[1729674717060,2.1141,2570.9,2570.5,2.0571]
[1729674717260,0.38922,2570.6,2570.5,2.0571]
[1729674720269,0.3892,2570.8,2570.5,2.44633]
[1729674720468,0.38915,2571.1,2570.8,0.38918]
[1729674720872,1.9905,2571.2,2570.7,6.44002604]
[1729674721074,0.38915,2571.1,2570.9,0.38918]
[1729674721272,0.38933,2570.0,2569.8,0.4]
[1729674721468,8.23663192,2571.1,2569.8,0.4]
[1729674721469,3.2078,2570.2,2569.8,0.4]
[1729674721768,0.38929,2570.2,2569.8,0.78934]
[1729674721968,0.38928,2570.2,2569.8,0.4]
[1729674722173,2.172,2570.3,2569.8,0.4]
[1729674722174,0.38931,2570.1,2569.8,0.5906485]
[1729674722375,2.172,2570.3,2569.8,0.9799885]
[1729674722376,0.38929,2570.2,2569.8,0.9799885]
[1729674722673,3.2078,2570.5,2570.1,3.04]
[1729674722867,4.01288,2571.1,2570.2,2.0309]
[1729674722868,0.38926,2570.4,2570.2,2.0309]
[1729674723074,3.14498,2570.9,2570.2,2.0309]
[1729674723075,3.2078,2570.5,2570.2,2.0309]
[1729674723268,3.2078,2570.5,2569.8,3.6078]
[1729674723668,2.172,2570.9,2569.8,0.4]
[1729674723669,0.38933,2569.9,2569.8,0.4]
[1729674724074,0.38933,2569.9,2569.8,4.2912]
[1729674724374,0.38933,2569.9,2569.8,0.4]
[1729674724672,4.28053,2569.9,2569.8,0.4]
[1729674725471,0.38933,2569.9,2569.8,0.4]
[1729674726474,8.65499466,2569.9,2569.8,0.4]
[1729674726675,4.76379466,2569.9,2569.8,0.4]
[1729674726880,0.38933,2569.9,2569.8,0.4]
[1729674727079,4.28053,2569.9,2569.8,0.4]
[1729674727271,0.38944,2569.2,2569.0,1.01152831]
[1729674727478,0.38947,2569.0,2568.9,2.057]